bitfinex-derivatives/quotes_BNBF0:USTF0_20250211
["timestamp","ask_amount","ask_price","bid_price","bid_amount"]
[1739317658212,2.66519804,644.66,644.23,0.31044813]
[1739317658416,3.67071351,644.65,644.23,0.31044813]
[1739317658633,2.66519804,644.64,644.23,0.31044813]
[1739317658818,2.66519804,644.63,644.23,0.31044813]
[1739317659013,2.66519804,644.62,644.23,0.31044813]
[1739317659214,3.67071351,644.61,644.23,0.31044813]
[1739317659513,2.66519804,644.6,644.23,0.31044813]
[1739317659721,2.66519804,644.59,644.23,0.31044813]
[1739317659920,2.66519804,644.58,644.23,0.31044813]
[1739317660116,2.6651288,644.57,644.23,0.31044813]
[1739317660320,2.6651288,644.56,644.23,0.31044813]
[1739317660522,2.6651288,644.55,644.23,0.31044813]
[1739317660821,1.00551547,644.58,644.23,0.31044813]
[1739317660822,2.66510915,644.54,644.23,0.31044813]
[1739317661023,2.66510915,644.53,644.23,0.31044813]
[1739317661322,2.66510915,644.52,644.23,0.31044813]
[1739317661523,2.66510915,644.51,644.23,0.31044813]
[1739317661721,2.6652973,644.5,644.23,0.31044813]
[1739317661921,2.6652973,644.49,644.23,0.31044813]
[1739317662117,2.66531275,644.48,644.23,0.31044813]
[1739317662318,1.37624691,644.47,644.23,0.31044813]
[1739317662522,1.37624691,644.46,644.23,0.31044813]
[1739317662723,1.37624691,644.45,644.23,0.31044813]
[1739317662940,1.37624691,644.44,644.23,0.31044813]
[1739317663119,2.38176238,644.43,644.23,0.31044813]
[1739317663419,1.37624691,644.42,644.23,0.31044813]
[1739317663723,1.00551547,644.43,644.23,0.31044813]
[1739317663925,1.00551547,644.41,644.23,0.31044813]
[1739317664724,1.37609961,644.4,644.23,0.31044813]
[1739317664924,2.3816337,644.39,644.23,0.31044813]
[1739317665125,1.00551547,644.39,644.23,0.31044813]
[1739317665425,1.00551547,644.38,644.23,0.31044813]
[1739317666125,1.00551547,644.37,644.23,0.31044813]
[1739317666719,0.92828968,644.64,644.23,0.31044813]
[1739317666925,2.66454843,644.63,644.23,0.31044813]
[1739317667131,2.66454843,644.62,644.23,0.31044813]
[1739317667320,2.66454843,644.61,644.23,0.31044813]
[1739317667520,2.66454843,644.6,644.23,0.31044813]
[1739317667730,3.66977849,644.59,644.23,0.31044813]
[1739317667927,2.66454843,644.58,644.23,0.31044813]
[1739317668127,2.66454843,644.57,644.23,0.31044813]
[1739317668328,2.66454843,644.56,644.23,0.31044813]
[1739317668527,2.66454843,644.55,644.23,0.31044813]
[1739317668830,2.66454843,644.54,644.23,0.31044813]
[1739317669024,2.66461564,644.53,644.23,0.31044813]
[1739317669228,2.66461564,644.52,644.23,0.31044813]
[1739317669428,2.66461564,644.51,644.23,0.31044813]
[1739317669624,2.66461564,644.5,644.23,0.31044813]
[1739317669928,2.66461564,644.49,644.23,0.31044813]
[1739317670126,2.66462963,644.48,644.23,0.31044813]
[1739317670323,1.37596679,644.47,644.23,0.31044813]
[1739317670522,2.38119685,644.46,644.23,0.31044813]
[1739317670827,1.37596679,644.45,644.23,0.31044813]
[1739317671027,2.38119685,644.44,644.23,0.31044813]
[1739317671229,1.37596679,644.43,644.23,0.31044813]
[1739317671429,1.00523006,644.44,644.23,0.31044813]
[1739317671625,7.21569024,645.7,644.23,0.31044813]
[1739317671626,2.38122336,644.43,644.23,0.31044813]
[1739317671821,1.00523006,644.42,644.23,0.31044813]
[1739317672427,1.00523006,644.41,644.23,0.31044813]
[1739317673225,0.92828968,644.67,644.23,0.31044813]
[1739317673226,1.00523006,644.4,644.23,0.31044813]
[1739317674032,0.92828968,644.67,644.23,0.31044813]
[1739317674234,1.3760477,644.66,644.23,0.31044813]
[1739317674532,1.3760477,644.65,644.23,0.31044813]
[1739317674830,1.3760477,644.64,644.23,0.31044813]
[1739317675026,1.3760477,644.63,644.23,0.31044813]
[1739317675231,1.3760477,644.62,644.23,0.31044813]
[1739317675425,1.3760477,644.61,644.23,0.31044813]
[1739317675628,1.3760477,644.6,644.23,0.31044813]
[1739317675828,1.3760477,644.59,644.23,0.31044813]
[1739317676027,1.3760477,644.58,644.23,0.31044813]
[1739317676232,1.3760477,644.57,644.23,0.31044813]
[1739317676430,1.3760477,644.56,644.23,0.31044813]
[1739317676624,1.3760477,644.55,644.23,0.31044813]
[1739317676828,1.3760477,644.54,644.23,0.31044813]
[1739317677029,1.00531983,644.55,644.23,0.31044813]
[1739317677030,1.3760477,644.53,644.23,0.31044813]
[1739317677229,1.3760477,644.52,644.23,0.31044813]
[1739317677428,1.37596152,644.51,644.23,0.31044813]
[1739317677629,1.37596152,644.5,644.23,0.31044813]
[1739317677826,1.00531983,644.51,644.23,0.31044813]
[1739317677827,1.37596152,644.49,644.23,0.31044813]
[1739317678027,2.38128135,644.48,644.23,0.31044813]
[1739317678231,1.37596152,644.47,644.23,0.31044813]
[1739317678427,1.37596152,644.46,644.23,0.31044813]
[1739317678632,2.38128135,644.45,644.23,0.31044813]
[1739317678831,1.37596152,644.44,644.23,0.31044813]
[1739317679031,1.37596152,644.43,644.23,0.31044813]
[1739317679331,1.37596152,644.42,644.23,0.31044813]
[1739317679532,1.37596152,644.41,644.23,0.31044813]
[1739317679732,1.37596152,644.4,644.23,0.31044813]
[1739317679932,1.37596152,644.39,644.23,0.31044813]
[1739317680133,2.38128135,644.38,644.23,0.31044813]
[1739317680328,1.37596152,644.37,644.23,0.31044813]
[1739317680529,2.38128135,644.36,644.23,0.31044813]
[1739317680733,1.37596152,644.35,644.23,0.31044813]
[1739317680930,1.37602215,644.34,644.23,0.31044813]
[1739317681129,1.37602215,644.33,644.23,0.31044813]
[1739317681430,1.37602215,644.32,644.23,0.31044813]
[1739317681632,2.38134198,644.31,644.23,0.31044813]
[1739317681833,1.37602215,644.3,644.23,0.31044813]
[1739317682034,1.37602215,644.29,644.23,0.31044813]
[1739317682235,1.37549769,644.28,644.23,0.31044813]
[1739317682534,1.00531983,644.29,644.23,0.31044813]
[1739317682933,1.00531983,644.28,644.23,0.31044813]
[1739317683835,1.00531983,644.27,644.23,0.31044813]
[1739317684330,0.92828468,644.58,644.23,0.31044813]
[1739317684558,1.37493999,644.57,644.23,0.31044813]
[1739317684734,1.37493999,644.56,644.23,0.31044813]
[1739317684934,1.37493999,644.55,644.23,0.31044813]
[1739317685137,1.37493724,644.54,644.23,0.31044813]
[1739317685338,2.37954491,644.53,644.23,0.31044813]
[1739317685540,1.37493724,644.52,644.23,0.31044813]
[1739317685741,1.37493724,644.51,644.23,0.31044813]
[1739317685943,2.37954491,644.5,644.23,0.31044813]
[1739317686140,1.37493724,644.49,644.23,0.31044813]
[1739317686441,2.37954491,644.48,644.23,0.31044813]
[1739317686659,1.00460767,644.48,644.23,0.31044813]
[1739317686843,1.37448931,644.47,644.23,0.31044813]
[1739317687036,2.37909698,644.46,644.23,0.31044813]
[1739317687239,1.37448931,644.45,644.23,0.31044813]
[1739317687435,1.37448931,644.44,644.23,0.31044813]
[1739317687636,1.00460767,644.46,644.23,0.31044813]
[1739317687637,1.37448931,644.43,644.23,0.31044813]
[1739317687839,2.37909698,644.42,644.23,0.31044813]
[1739317688143,1.37448931,644.41,644.23,0.31044813]
[1739317688341,1.37448931,644.4,644.23,0.31044813]
[1739317688538,1.37448931,644.39,644.23,0.31044813]
[1739317688743,1.37448931,644.38,644.23,0.31044813]
[1739317688937,1.37448931,644.37,644.23,0.31044813]
[1739317689141,1.37448931,644.36,644.23,0.31044813]
[1739317689337,1.37448931,644.35,644.23,0.31044813]
[1739317689541,2.37909698,644.34,644.23,0.31044813]
[1739317689744,1.37448931,644.33,644.23,0.31044813]
[1739317689942,1.37448931,644.32,644.23,0.31044813]
[1739317690137,1.00460767,644.32,644.23,0.31044813]
[1739317690542,1.00460767,644.31,644.23,0.31044813]
[1739317691142,1.00460767,644.3,644.23,0.31044813]
[1739317691545,1.00460767,644.29,644.23,0.31044813]
[1739317691943,0.92689003,644.6,644.23,0.31044813]
[1739317692139,1.37359512,644.59,644.23,0.31044813]
[1739317692344,1.37359512,644.58,644.23,0.31044813]
[1739317692546,1.37359512,644.57,644.23,0.31044813]
[1739317692739,1.37359512,644.56,644.23,0.31044813]
[1739317692940,1.37359512,644.55,644.23,0.31044813]
[1739317693143,1.37359512,644.54,644.23,0.31044813]
[1739317693343,1.00354148,644.58,644.23,0.31044813]
[1739317693545,1.00354148,644.54,644.23,0.31044813]
[1739317693741,1.37340729,644.53,644.23,0.31044813]
[1739317693945,1.37340729,644.52,644.23,0.31044813]
[1739317694148,1.37340729,644.51,644.23,0.31044813]
[1739317694347,1.37340729,644.5,644.23,0.31044813]
[1739317694544,1.37340729,644.49,644.23,0.31044813]
[1739317694746,1.37340729,644.48,644.23,0.31044813]
[1739317694946,1.00354148,644.48,644.23,0.31044813]
[1739317695146,1.37332871,644.47,644.23,0.31044813]
[1739317695347,1.37332871,644.46,644.23,0.31044813]
[1739317695646,1.37332871,644.45,644.23,0.31044813]
[1739317695946,1.37332871,644.44,644.23,0.31044813]
[1739317696146,1.37332871,644.43,644.23,0.31044813]
[1739317696347,1.00354148,644.44,644.23,0.31044813]
[1739317696548,1.00354148,644.43,644.23,0.31044813]
[1739317697249,0.92657753,644.8,644.23,0.31044813]
[1739317697448,1.37342888,644.79,644.23,0.31044813]
[1739317697650,1.37342888,644.78,644.23,0.31044813]
[1739317697850,1.00343966,644.79,644.23,0.31044813]
[1739317697851,1.37342888,644.77,644.23,0.31044813]
[1739317698049,1.37342888,644.76,644.23,0.31044813]
[1739317698348,1.37342888,644.75,644.23,0.31044813]
[1739317698648,1.37342888,644.74,644.23,0.31044813]
[1739317698851,2.37686854,644.73,644.23,0.31044813]
[1739317699047,1.37342888,644.72,644.23,0.31044813]
[1739317699247,1.37342888,644.71,644.23,0.31044813]
[1739317699550,1.37342888,644.7,644.23,0.31044813]
[1739317699750,1.00343966,644.73,644.23,0.31044813]
[1739317699751,1.37342888,644.69,644.23,0.31044813]
[1739317699949,1.37342888,644.68,644.23,0.31044813]
[1739317700150,1.37342888,644.67,644.23,0.31044813]
[1739317700349,1.37342888,644.66,644.23,0.31044813]
[1739317700649,2.37686854,644.65,644.23,0.31044813]
[1739317700849,1.37342888,644.64,644.23,0.31044813]
[1739317701049,1.37342888,644.63,644.23,0.31044813]
[1739317701244,1.37342888,644.62,644.23,0.31044813]
[1739317701449,1.37342888,644.61,644.23,0.31044813]
[1739317701645,1.37342888,644.6,644.23,0.31044813]
[1739317701846,1.37342888,644.59,644.23,0.31044813]
[1739317702047,1.37342888,644.58,644.23,0.31044813]
[1739317702244,1.37342888,644.57,644.23,0.31044813]
[1739317702446,1.37342888,644.56,644.23,0.31044813]
[1739317702648,2.37686854,644.55,644.23,0.31044813]
[1739317702845,1.37342888,644.54,644.23,0.31044813]
[1739317703152,1.00343966,644.55,644.23,0.31044813]
[1739317703352,1.37428845,644.53,644.23,0.31044813]
[1739317703746,1.37428845,644.54,644.23,0.31044813]
[1739317704052,1.00343966,644.55,644.23,0.31044813]
[1739317704450,1.37449169,644.54,644.23,0.31044813]
[1739317705254,1.37467123,644.53,644.23,0.31044813]
[1739317705453,1.37467123,644.52,644.23,0.31044813]
[1739317705653,1.37467123,644.51,644.23,0.31044813]
[1739317705849,2.37811089,644.5,644.23,0.31044813]
[1739317706053,1.37467123,644.49,644.23,0.31044813]
[1739317706250,1.37467123,644.48,644.23,0.31044813]
[1739317706449,2.37811089,644.47,644.23,0.31044813]
[1739317706656,1.37467123,644.46,644.23,0.31044813]
[1739317706853,1.37467123,644.45,644.23,0.31044813]
[1739317707054,1.00343966,644.47,644.23,0.31044813]
[1739317707055,1.37467123,644.44,644.23,0.31044813]
[1739317707354,2.37811089,644.43,644.23,0.31044813]
[1739317707551,1.37525893,644.42,644.23,0.31044813]
[1739317707756,1.37525893,644.41,644.23,0.31044813]
[1739317707956,1.37525893,644.4,644.23,0.31044813]
[1739317708256,1.37525893,644.39,644.23,0.31044813]
[1739317708457,1.37525893,644.38,644.23,0.31044813]
[1739317708657,1.37525893,644.37,644.23,0.31044813]
[1739317708850,1.37525893,644.36,644.23,0.31044813]
[1739317709052,2.37869859,644.35,644.23,0.31044813]
[1739317709257,1.37525893,644.34,644.23,0.31044813]
[1739317709552,1.37525893,644.33,644.23,0.31044813]
[1739317709755,1.3756009,644.32,644.23,0.31044813]
[1739317709956,1.3756009,644.31,644.23,0.31044813]
[1739317710158,1.3756009,644.3,644.23,0.31044813]
[1739317710372,1.3756009,644.29,644.23,0.31044813]
[1739317710554,0.9282217,644.26,644.23,0.31044813]
[1739317710753,1.3756009,644.28,644.23,0.31044813]
[1739317710754,0.9282217,644.24,644.23,0.31044813]
[1739317710956,1.3756009,644.24,644.23,0.31044813]
[1739317711152,2.37904056,644.24,643.81,1.15564507]
[1739317711355,0.92703093,644.17,643.81,1.15564507]
[1739317711553,0.92703093,644.13,643.81,1.15564507]
[1739317711756,2.3007733,644.12,643.51,1.15564507]
[1739317711958,2.3007733,644.11,643.51,1.15564507]
[1739317712159,1.37374237,644.1,643.51,1.15564507]
[1739317712460,1.37374237,644.09,643.51,1.15564507]
[1739317712675,1.37374237,644.08,643.51,1.15564507]
[1739317712861,1.37374237,644.07,643.51,1.15564507]
[1739317713058,1.37374237,644.06,643.51,1.15564507]
[1739317713360,1.37374237,644.05,643.52,1.62201843]
[1739317713558,2.37718203,644.04,643.52,1.62201843]
[1739317713776,1.37374237,644.03,643.53,0.31078582]
[1739317713959,1.37085005,644.02,643.53,0.31078582]
[1739317714162,1.37085005,644.01,643.53,0.31078582]
[1739317714360,1.37085005,644.0,643.53,0.31078582]
[1739317714656,1.37085005,643.99,643.53,0.31078582]
[1739317714857,1.37085005,643.98,643.53,0.31078582]
[1739317715054,1.37085005,643.97,643.53,0.31078582]
[1739317715254,1.37085005,643.96,643.53,0.31078582]
[1739317715456,1.37085005,643.95,643.53,0.31078582]
[1739317715656,2.37428971,643.94,643.53,0.31078582]
[1739317715952,1.00343966,643.94,643.53,0.31078582]
[1739317716360,1.00343966,643.93,643.53,0.31078582]
[1739317716753,1.00343966,643.92,643.53,0.31078582]
[1739317717556,0.92516519,644.29,643.53,0.31078582]
[1739317717760,2.29261854,644.28,643.53,0.31078582]
[1739317717961,1.36745335,644.27,643.53,0.31078582]
[1739317718160,1.36745335,644.26,643.53,0.31078582]
[1739317718360,1.36745335,644.25,643.53,0.31078582]
[1739317718660,1.36680183,644.24,643.53,0.31078582]
[1739317718857,2.36177248,644.23,643.53,0.31078582]
[1739317719074,1.36680183,644.22,643.53,0.31078582]
[1739317719253,1.36680183,644.21,643.53,0.31078582]
[1739317719458,1.36680183,644.2,643.53,0.31078582]
[1739317719761,1.36680183,644.19,643.53,0.31078582]
[1739317719955,1.36680183,644.18,643.53,0.31078582]
[1739317720161,1.36623483,644.17,643.53,0.31078582]
[1739317720359,1.36623483,644.16,643.53,0.31078582]
[1739317720662,2.36120548,644.15,643.53,0.31078582]
[1739317720960,1.36623483,644.14,643.53,0.31078582]
[1739317721161,1.36623483,644.13,643.53,0.31078582]
[1739317721355,1.36623483,644.12,643.53,0.31078582]
[1739317721557,1.36623483,644.11,643.53,0.31078582]
[1739317721758,1.36623483,644.1,643.53,0.31078582]
[1739317721959,1.36623483,644.09,643.53,0.31078582]
[1739317722159,1.36623483,644.08,643.53,0.31078582]
[1739317722359,2.35941146,644.07,643.53,0.31078582]
[1739317722561,1.36623483,644.06,643.53,0.31078582]
[1739317722862,1.36623483,644.05,643.53,0.31078582]
[1739317723062,1.36623483,644.04,643.53,0.31078582]
[1739317723264,1.36623483,644.03,643.53,0.31078582]
[1739317723563,2.35941146,644.02,643.53,0.31078582]
[1739317723863,0.9212024,644.16,643.53,0.31078582]
[1739317723864,2.35941146,644.01,643.53,0.31078582]
[1739317724057,1.36623483,644.0,643.53,0.31078582]
[1739317724254,1.36623483,643.99,643.53,0.31078582]
[1739317724460,2.35941146,643.98,643.53,0.31078582]
[1739317724658,1.36623483,643.97,643.53,0.31078582]
[1739317724963,1.36623483,643.96,643.53,0.31078582]
[1739317725162,1.36623483,643.95,643.53,0.31078582]
[1739317725363,0.99317663,643.96,643.53,0.31078582]
[1739317725566,2.35681152,643.95,643.53,0.31078582]
[1739317725758,0.99317663,643.94,643.53,0.31078582]
[1739317726461,0.99317663,643.93,643.53,0.31078582]
[1739317727459,0.9212024,644.26,643.53,0.31078582]
[1739317727671,1.36307286,644.25,643.53,0.31078582]
[1739317727964,1.36307286,644.24,643.53,0.31078582]
[1739317728165,2.35487141,644.23,643.53,0.31078582]
[1739317728367,1.36307286,644.22,643.53,0.31078582]
[1739317728561,1.36283294,644.21,643.53,0.31078582]
[1739317728761,1.36283294,644.2,643.53,0.31078582]
[1739317728963,1.36283294,644.19,643.53,0.31078582]
[1739317729164,1.36283294,644.18,643.53,0.31078582]
[1739317729363,1.36283294,644.17,643.53,0.31078582]
[1739317729565,1.36283294,644.16,643.53,0.31078582]
[1739317729865,1.36283294,644.15,643.53,0.31078582]
[1739317730060,0.99179855,644.17,643.53,0.31078582]
[1739317730061,1.36283294,644.14,643.53,0.31078582]
[1739317730259,2.35463149,644.13,643.53,0.31078582]
[1739317730566,1.36283294,644.12,643.53,0.31078582]
[1739317730765,1.36283294,644.11,643.53,0.31078582]
[1739317731066,2.35437505,644.1,643.53,0.31078582]
[1739317731366,1.3625765,644.09,643.53,0.31078582]
[1739317731666,1.3625765,644.08,643.53,0.31078582]
[1739317731973,1.3625765,644.07,643.53,0.31078582]
[1739317732167,0.99179855,644.06,643.53,0.31078582]
[1739317732567,0.9212024,644.31,643.53,0.31078582]
[1739317732760,1.36258103,644.3,643.53,0.31078582]
[1739317732965,1.36258103,644.29,643.53,0.31078582]
[1739317733267,1.36258103,644.28,643.53,0.31078582]
[1739317733462,1.36258103,644.27,643.53,0.31078582]
[1739317733662,1.36258103,644.26,643.53,0.31078582]
[1739317733963,2.35397841,644.25,643.53,0.31078582]
[1739317734176,1.36258103,644.24,643.53,0.31078582]
[1739317734468,2.35397841,644.23,643.53,0.31078582]
[1739317734662,1.36258103,644.22,643.53,0.31078582]
[1739317734865,1.36258103,644.21,643.53,0.31078582]
[1739317735063,1.36258103,644.2,643.53,0.31078582]
[1739317735261,1.36258103,644.19,643.53,0.31078582]
[1739317735464,1.36258103,644.18,643.53,0.31078582]
[1739317735665,1.36258103,644.17,643.53,0.31078582]
[1739317735866,1.36258103,644.16,643.53,0.31078582]
[1739317736065,1.36258103,644.15,643.53,0.31078582]
[1739317736287,1.36258103,644.14,643.53,0.31078582]
[1739317736568,2.35397841,644.13,643.53,0.31078582]
[1739317736768,0.99139738,644.13,643.53,0.31078582]
[1739317736961,1.3629088,644.12,643.53,0.31078582]
[1739317737267,1.3629088,644.11,643.53,0.31078582]
[1739317737465,1.3629088,644.1,643.53,0.31078582]
[1739317737665,1.3629088,644.09,643.53,0.31078582]
[1739317737862,1.3629088,644.08,643.53,0.31078582]
[1739317738063,1.3629088,644.07,643.53,0.31078582]
[1739317738267,2.35430618,644.06,643.53,0.31078582]
[1739317738568,1.3629088,644.05,643.53,0.31078582]
[1739317738764,1.3629088,644.04,643.53,0.31078582]
[1739317738971,1.3629088,644.03,643.53,0.31078582]
[1739317739268,2.35430618,644.02,643.53,0.31078582]
[1739317739461,0.99139738,644.02,643.53,0.31078582]
[1739317739665,1.36331943,644.01,643.53,0.31078582]
[1739317739968,1.36331943,644.0,643.53,0.31078582]
[1739317740170,1.36331943,643.99,643.53,0.31078582]
[1739317740470,1.36334643,643.98,643.53,0.31078582]
[1739317740669,0.99139738,644.01,643.53,0.31078582]
[1739317740971,2.35473091,644.0,643.53,0.31078582]
[1739317741169,1.36333353,643.99,643.53,0.31078582]
[1739317741363,0.91995491,644.2,643.53,0.31078582]
[1739317741364,2.35473091,643.98,643.53,0.31078582]
[1739317741606,1.36332371,643.97,643.53,0.31078582]
[1739317741769,1.36332371,643.96,643.53,0.31078582]
[1739317741968,2.35472109,643.95,643.53,0.31078582]
[1739317742170,0.99139738,643.95,643.53,0.31078582]
[1739317742664,0.99139738,643.94,643.53,0.31078582]
[1739317743069,0.99139738,643.93,643.53,0.31078582]
[1739317743470,0.92007877,644.2,643.53,0.31078582]
[1739317743670,2.64030712,644.19,643.53,0.31078582]
[1739317743967,2.64030712,644.18,643.53,0.31078582]
[1739317744174,3.63222705,644.17,643.53,0.31078582]
[1739317744368,2.64030712,644.16,643.53,0.31078582]
[1739317744669,3.63222705,644.15,643.53,0.31078582]
[1739317744867,2.64030712,644.14,643.53,0.31078582]
[1739317745067,2.64030712,644.13,643.53,0.31078582]
[1739317745266,2.64030712,644.12,643.53,0.31078582]
[1739317745469,2.64030712,644.11,643.53,0.31078582]
[1739317745669,2.64030712,644.1,643.53,0.31078582]
[1739317745871,2.64030712,644.09,643.53,0.31078582]
[1739317746164,2.64030712,644.08,643.53,0.31078582]
[1739317746370,2.64030712,644.07,643.53,0.31078582]
[1739317746572,2.64030712,644.06,643.53,0.31078582]
[1739317746771,2.64030712,644.05,643.53,0.31078582]
[1739317746968,2.64030712,644.04,643.53,0.31078582]
[1739317747171,1.36325702,644.03,643.53,0.31078582]
[1739317747470,1.36325702,644.02,643.53,0.31078582]
[1739317747770,2.35517695,644.01,643.53,0.31078582]
[1739317747971,1.36325702,644.0,643.53,0.31078582]
[1739317748173,1.36325702,643.99,643.53,0.31078582]
[1739317748371,1.36325702,643.98,643.53,0.31078582]
[1739317748569,1.36325702,643.97,643.53,0.31078582]
[1739317748768,0.99191993,643.98,643.53,0.31078582]
[1739317748967,0.99191993,643.97,643.53,0.31078582]
[1739317749167,2.35544188,643.96,643.53,0.31078582]
[1739317749473,0.99191993,643.96,643.53,0.31078582]
[1739317750070,0.99191993,643.95,643.53,0.31078582]
[1739317750773,0.92007877,644.19,643.53,0.31078582]
[1739317750973,2.64113542,644.18,643.53,0.31078582]
[1739317751174,2.6411079,644.17,643.53,0.31078582]
[1739317751370,2.6411079,644.16,643.53,0.31078582]
[1739317751571,3.63343466,644.15,643.53,0.31078582]
[1739317751768,2.6411079,644.14,643.53,0.31078582]
[1739317752072,2.6411079,644.13,643.53,0.31078582]
[1739317752268,3.63343466,644.12,643.53,0.31078582]
[1739317752468,2.6411079,644.11,643.53,0.31078582]
[1739317752673,2.6411079,644.1,643.53,0.31078582]
[1739317752868,2.64129114,644.09,643.53,0.31078582]
[1739317753074,2.64129114,644.08,643.53,0.31078582]
[1739317753375,2.64129114,644.07,643.53,0.31078582]
[1739317753572,2.64129114,644.06,643.53,0.31078582]
[1739317753771,1.36385863,644.05,643.53,0.31078582]
[1739317753969,1.36385863,644.04,643.53,0.31078582]
[1739317754172,1.36385863,644.03,643.53,0.31078582]
[1739317754374,2.35618539,644.02,643.53,0.31078582]
[1739317754573,0.99232676,644.02,643.53,0.31078582]
[1739317755178,0.99232676,644.01,643.53,0.31078582]
[1739317755572,0.99232676,644.0,643.53,0.31078582]
[1739317755775,0.92032474,644.29,643.53,0.31078582]
[1739317756077,2.64313853,644.28,643.53,0.31078582]
[1739317756279,2.64313853,644.27,643.53,0.31078582]
[1739317756473,2.64313853,644.26,643.53,0.31078582]
[1739317756680,2.64313853,644.25,643.53,0.31078582]
[1739317756874,2.64313853,644.24,643.53,0.31078582]
[1739317757075,2.64313853,644.23,643.53,0.31078582]
[1739317757278,2.64313853,644.22,643.53,0.31078582]
[1739317757471,2.64313853,644.21,643.53,0.31078582]
[1739317757678,0.67219215,645.01,643.53,0.31078582]
[1739317757679,3.63611702,644.2,643.53,0.31078582]
[1739317757879,2.64313853,644.19,643.53,0.31078582]
[1739317758079,2.64313853,644.18,643.53,0.31078582]
[1739317758281,2.64313853,644.17,643.53,0.31078582]
[1739317758480,2.64313853,644.16,643.53,0.31078582]
[1739317758683,2.64313853,644.15,643.53,0.31078582]
[1739317758876,1.27840089,644.14,643.53,0.31078582]
[1739317759077,2.64505143,644.13,643.53,0.31078582]
[1739317759278,2.64505143,644.12,643.53,0.31078582]
[1739317759478,2.64829639,644.11,643.53,0.31078582]
[1739317759680,2.64829639,644.1,643.53,0.31078582]
[1739317759904,2.64829639,644.09,643.53,0.31078582]
[1739317760076,2.64829639,644.08,643.53,0.31078582]
[1739317760281,2.64829639,644.07,643.53,0.31078582]
[1739317760475,4.56416565,644.06,643.53,0.31078582]
[1739317760679,2.64829639,644.05,643.53,0.31078582]
[1739317760874,2.64829639,644.04,643.53,0.31078582]
[1739317761077,2.64957626,644.03,643.53,0.31078582]
[1739317761277,2.64957626,644.02,643.53,0.31078582]
[1739317761481,2.64957626,644.01,643.53,0.31078582]
[1739317761677,2.64957626,644.0,643.53,0.31078582]
[1739317761978,3.64255475,643.99,643.53,0.31078582]
[1739317762182,2.64957626,643.98,643.53,0.31078582]
[1739317762377,3.64255475,643.97,643.53,0.31078582]
[1739317762683,2.64957626,643.96,643.53,0.31078582]
[1739317762883,2.64957626,643.95,643.53,0.31078582]
[1739317763083,2.64957626,643.94,643.53,0.31078582]
[1739317763378,2.64957626,643.93,643.53,0.31078582]
[1739317763584,2.64957626,643.92,643.53,0.31078582]
[1739317763778,2.64957626,643.91,643.53,0.31078582]
[1739317763978,2.64957626,643.9,643.53,0.31078582]
[1739317764216,2.64957626,643.89,643.53,0.31078582]
[1739317764386,2.64957626,643.88,643.53,0.31078582]
[1739317764584,2.64957626,643.87,643.53,0.31078582]
[1739317764880,2.64957626,643.86,643.53,0.31078582]
[1739317765085,2.64957626,643.85,643.53,0.31078582]
[1739317765278,2.65096429,643.84,643.53,0.31078582]
[1739317765484,2.65250891,643.83,643.53,0.31078582]
[1739317765682,2.65250891,643.82,643.53,0.31078582]
[1739317765883,2.65250891,643.81,643.53,0.31078582]
[1739317766084,2.65250891,643.8,643.53,0.31078582]
[1739317766321,2.65250891,643.79,643.53,0.31078582]
[1739317766485,2.65250891,643.78,643.53,0.31078582]
[1739317766683,1.36952676,643.77,643.53,0.31078582]
[1739317766885,2.36250525,643.76,643.53,0.31078582]
[1739317767087,1.36952676,643.75,643.53,0.31078582]
[1739317767287,1.36952676,643.74,643.53,0.31078582]
[1739317767486,1.36952676,643.73,643.53,0.31078582]
[1739317767785,1.37289632,643.72,643.53,0.31078582]
[1739317767991,1.37289632,643.71,643.53,0.31078582]
[1739317768287,2.36698537,643.7,643.53,0.31078582]
[1739317768588,0.99297849,643.7,643.53,0.31078582]
[1739317769092,0.99297849,643.69,643.53,0.31078582]
[1739317769386,2.36810338,643.68,643.53,0.31078582]
[1739317769586,1.37512489,643.67,643.53,0.31078582]
[1739317769787,0.99297849,643.68,643.53,0.31078582]
[1739317769983,2.36804797,643.67,643.53,0.31078582]
[1739317770188,1.37506948,643.66,643.53,0.31078582]
[1739317770386,0.99297849,643.67,643.53,0.31078582]
[1739317770583,0.99297849,643.65,643.53,0.31078582]
[1739317771591,0.92829883,643.93,643.53,0.31078582]
[1739317771787,2.66384599,643.92,643.53,0.31078582]
[1739317771984,2.66384599,643.91,643.53,0.31078582]
[1739317772291,2.66384599,643.9,643.53,0.31078582]
[1739317772491,2.66384599,643.89,643.53,0.31078582]
[1739317772696,2.66384599,643.88,643.53,0.31078582]
[1739317772894,2.66384599,643.87,643.53,0.31078582]
[1739317773192,2.66384599,643.86,643.53,0.31078582]
[1739317773392,2.66384599,643.85,643.53,0.31078582]
[1739317773593,2.66384599,643.84,643.53,0.31078582]
[1739317773788,2.66384599,643.83,643.53,0.31078582]
[1739317773992,2.66384599,643.82,643.53,0.31078582]
[1739317774294,2.66384599,643.81,643.53,0.31078582]
[1739317774493,2.66384599,643.8,643.53,0.31078582]
[1739317774690,2.66384599,643.79,643.53,0.31078582]
[1739317774888,1.00075572,643.78,643.53,0.31078582]
[1739317775696,1.00075572,643.77,643.53,0.31078582]
[1739317776394,0.92790106,644.16,643.53,0.31078582]
[1739317776595,2.66276861,644.15,643.53,0.31078582]